[Event "Titled Tuesday Blitz December 7 2021"]
[White "Dronavalli, Harika"]
[Black "Zhuravleva, Olga"]
[WhiteFideId "5015197"]
[BlackFideId "4145933"]
[WhiteElo "2382"]
[BlackElo "2119"]
[Result "1/2-1/2"]
[Round "01"]
[TimeControl "180+1"]
[Date "2021.12.07"]
[WhiteClock "0:00:30"]
[BlackClock "0:00:06"]

1. d4 {[%clk 0:02:59]}  Nf6 {[%clk 0:02:54]} 2. Nf3 {[%clk 0:02:58]}  e6 {[%clk 0:02:52]} 3. Bf4 {[%clk 0:02:57]}  b6 {[%clk 0:02:51]} 4. e3 {[%clk 0:02:56]}  Bb7 {[%clk 0:02:51]} 5. Nbd2 {[%clk 0:02:54]}  d5 {[%clk 0:02:49]} 6. Bd3 {[%clk 0:02:49]}  Bd6 {[%clk 0:02:49]} 7. Qe2 {[%clk 0:02:47]}  Nbd7 {[%clk 0:02:46]} 8. c3 {[%clk 0:02:45]}  h6 {[%clk 0:02:44]} 9. O-O {[%clk 0:02:43]}  O-O {[%clk 0:02:44]} 10. Ne5 {[%clk 0:02:40]}  Ne4 {[%clk 0:02:38]} 11. Nxe4 {[%clk 0:02:37]}  dxe4 {[%clk 0:02:38]} 12. Bc2 {[%clk 0:02:36]}  Bxe5 {[%clk 0:02:35]} 13. dxe5 {[%clk 0:02:34]}  Qe7 {[%clk 0:02:28]} 14. Rfd1 {[%clk 0:02:32]}  Rfd8 {[%clk 0:02:25]} 15. b4 {[%clk 0:02:28]}  a5 {[%clk 0:02:12]} 16. a3 {[%clk 0:02:27]}  c5 {[%clk 0:02:01]} 17. Qg4 {[%clk 0:02:22]}  Kh8 {[%clk 0:01:51]} 18. b5 {[%clk 0:02:20]}  Nf8 {[%clk 0:01:48]} 19. Bg3 {[%clk 0:02:17]}  Qg5 {[%clk 0:01:42]} 20. Qxg5 {[%clk 0:02:05]}  hxg5 {[%clk 0:01:43]} 21. h4 {[%clk 0:02:05]}  gxh4 {[%clk 0:01:38]} 22. Bxh4 {[%clk 0:02:05]}  Rxd1+ {[%clk 0:01:32]} 23. Rxd1 {[%clk 0:02:03]}  Bd5 {[%clk 0:01:32]} 24. Be7 {[%clk 0:01:52]}  Ng6 {[%clk 0:01:29]} 25. Bd6 {[%clk 0:01:52]}  Ra7 {[%clk 0:01:26]} 26. a4 {[%clk 0:01:52]}  Rd7 {[%clk 0:01:19]} 27. c4 {[%clk 0:01:39]}  Bxc4 {[%clk 0:01:15]} 28. Bxe4 {[%clk 0:01:39]}  Nxe5 {[%clk 0:01:07]} 29. Bc6 {[%clk 0:01:28]}  Rd8 {[%clk 0:01:03]} 30. f4 {[%clk 0:01:08]}  Ng4 {[%clk 0:00:27]} 31. e4 {[%clk 0:01:06]}  Bb3 {[%clk 0:00:23]} 32. Rd3 {[%clk 0:01:05]}  Bxa4 {[%clk 0:00:21]} 33. e5 {[%clk 0:01:03]}  Kg8 {[%clk 0:00:19]} 34. Rg3 {[%clk 0:01:01]}  Nh6 {[%clk 0:00:19]} 35. Ra3 {[%clk 0:01:01]}  Bc2 {[%clk 0:00:18]} 36. Rc3 {[%clk 0:00:56]}  Ba4 {[%clk 0:00:16]} 37. Kh2 {[%clk 0:00:53]}  Nf5 {[%clk 0:00:15]} 38. Bc7 {[%clk 0:00:53]}  Rd2 {[%clk 0:00:14]} 39. Bxb6 {[%clk 0:00:51]}  Nd4 {[%clk 0:00:12]} 40. Bxa5 {[%clk 0:00:44]}  Nxc6 {[%clk 0:00:09]} 41. Rxc5 {[%clk 0:00:41]}  Ra2 {[%clk 0:00:07]} 42. bxc6 {[%clk 0:00:40]}  Bxc6 {[%clk 0:00:07]} 43. Rxc6 {[%clk 0:00:40]}  Rxa5 {[%clk 0:00:07]} 44. Rc7 {[%clk 0:00:40]}  Ra3 {[%clk 0:00:06]} 45. g3 {[%clk 0:00:41]}  g6 {[%clk 0:00:06]} 46. Kh3 {[%clk 0:00:41]}  Kg7 {[%clk 0:00:07]} 47. Kg4 {[%clk 0:00:41]}  Ra4 {[%clk 0:00:07]} 48. Kg5 {[%clk 0:00:39]}  Re4 {[%clk 0:00:07]} 49. Rc3 {[%clk 0:00:37]}  Re2 {[%clk 0:00:07]} 50. g4 {[%clk 0:00:35]}  Re4 {[%clk 0:00:06]} 51. Rc7 {[%clk 0:00:35]}  Re2 {[%clk 0:00:05]} 52. Ra7 {[%clk 0:00:33]}  Rh2 {[%clk 0:00:04]} 53. f5 {[%clk 0:00:32]}  gxf5 {[%clk 0:00:04]} 54. gxf5 {[%clk 0:00:32]}  Rg2+ {[%clk 0:00:05]} 55. Kh4 {[%clk 0:00:32]}  exf5 {[%clk 0:00:03]} 56. Kh5 {[%clk 0:00:31]}  Kf8 {[%clk 0:00:02]} 57. Kh4 {[%clk 0:00:30]}  Rg4+ {[%clk 0:00:02]} 58. Kh5 {[%clk 0:00:30]}  Re4 {[%clk 0:00:03]} 59. Kg5 {[%clk 0:00:31]}  Rxe5 {[%clk 0:00:03]} 60. Kf6 {[%clk 0:00:30]}  Re6+ {[%clk 0:00:03]} 61. Kxf5 {[%clk 0:00:31]}  Kg7 {[%clk 0:00:03]} 62. Ra8 {[%clk 0:00:31]}  Rf6+ {[%clk 0:00:04]} 63. Ke5 {[%clk 0:00:31]}  Re6+ {[%clk 0:00:04]} 64. Kd5 {[%clk 0:00:31]}  Rf6 {[%clk 0:00:04]} 65. Ra1 {[%clk 0:00:31]}  Rg6 {[%clk 0:00:04]} 66. Ke5 {[%clk 0:00:31]}  f6+ {[%clk 0:00:05]} 67. Ke6 {[%clk 0:00:31]}  Rg5 {[%clk 0:00:05]} 68. Re1 {[%clk 0:00:28]}  Re5+ {[%clk 0:00:05]} 69. Rxe5 {[%clk 0:00:28]}  fxe5 {[%clk 0:00:06]} 70. Kf5 {[%clk 0:00:29]}  e4 {[%clk 0:00:05]} 71. Kf4 {[%clk 0:00:29]}  e3 {[%clk 0:00:06]} 72. Kxe3 {[%clk 0:00:30]} 1/2-1/2


[Site "https://www.chess.com"]

[Event "Titled Tuesday Blitz December 7 2021"]
[White "Ivanchuk, Vasyl"]
[Black "Pacheco Lugo, Alejandro Jose"]
[WhiteFideId "14100010"]
[BlackFideId "3903745"]
[WhiteElo "2773"]
[BlackElo "2439"]
[Result "1-0"]
[Round "01"]
[TimeControl "180+1"]
[Date "2021.12.07"]
[WhiteClock "0:00:49"]
[BlackClock "0:00:07"]

1. e4 {[%clk 0:03:00]}  c5 {[%clk 0:02:59]} 2. Ne2 {[%clk 0:02:58]}  Nf6 {[%clk 0:02:58]} 3. Nbc3 {[%clk 0:02:57]}  d6 {[%clk 0:02:58]} 4. g3 {[%clk 0:02:55]}  Nc6 {[%clk 0:02:56]} 5. Bg2 {[%clk 0:02:55]}  g6 {[%clk 0:02:56]} 6. d3 {[%clk 0:02:54]}  Bg7 {[%clk 0:02:57]} 7. h3 {[%clk 0:02:52]}  O-O {[%clk 0:02:56]} 8. O-O {[%clk 0:02:52]}  Rb8 {[%clk 0:02:56]} 9. a4 {[%clk 0:02:51]}  a6 {[%clk 0:02:56]} 10. f4 {[%clk 0:02:52]}  Nd7 {[%clk 0:02:52]} 11. Kh2 {[%clk 0:02:40]}  b5 {[%clk 0:02:51]} 12. axb5 {[%clk 0:02:39]}  axb5 {[%clk 0:02:52]} 13. e5 {[%clk 0:02:40]}  Nd4 {[%clk 0:02:52]} 14. exd6 {[%clk 0:02:37]}  exd6 {[%clk 0:02:48]} 15. Nxd4 {[%clk 0:02:37]}  Bxd4 {[%clk 0:02:47]} 16. Ne4 {[%clk 0:02:18]}  Nb6 {[%clk 0:02:41]} 17. c3 {[%clk 0:01:49]}  Bg7 {[%clk 0:02:40]} 18. Be3 {[%clk 0:01:49]}  Nd5 {[%clk 0:02:22]} 19. Bg1 {[%clk 0:01:48]}  b4 {[%clk 0:02:20]} 20. c4 {[%clk 0:01:41]}  Nc7 {[%clk 0:02:18]} 21. d4 {[%clk 0:01:38]}  Ne6 {[%clk 0:01:47]} 22. dxc5 {[%clk 0:01:37]}  dxc5 {[%clk 0:01:48]} 23. b3 {[%clk 0:01:26]}  Bd4 {[%clk 0:01:32]} 24. f5 {[%clk 0:01:17]}  Bxg1+ {[%clk 0:01:30]} 25. Kxg1 {[%clk 0:01:11]}  Qxd1 {[%clk 0:01:18]} 26. Raxd1 {[%clk 0:01:10]}  gxf5 {[%clk 0:01:15]} 27. Rxf5 {[%clk 0:01:09]}  Nd4 {[%clk 0:00:53]} 28. Rg5+ {[%clk 0:01:07]}  Kh8 {[%clk 0:00:54]} 29. Nxc5 {[%clk 0:01:07]}  Ne2+ {[%clk 0:00:19]} 30. Kh2 {[%clk 0:01:06]}  Nc3 {[%clk 0:00:16]} 31. Rd6 {[%clk 0:01:00]}  f6 {[%clk 0:00:15]} 32. Rh5 {[%clk 0:00:58]}  Kg8 {[%clk 0:00:08]} 33. Nd7 {[%clk 0:00:49]}  Bxd7 {[%clk 0:00:07]} 34. Rxd7 {[%clk 0:00:49]} 1-0


[Site "https://www.chess.com"]

[Event "Titled Tuesday Blitz December 7 2021"]
[White "Jobava, Baadur"]
[Black "Aslanov, Umid"]
[WhiteFideId "13601520"]
[BlackFideId "13412620"]
[WhiteElo "2918"]
[BlackElo "2474"]
[Result "1-0"]
[Round "01"]
[TimeControl "180+1"]
[Date "2021.12.07"]
[WhiteClock "0:01:51"]
[BlackClock "0:01:32"]

1. e4 {[%clk 0:03:00]}  c5 {[%clk 0:02:59]} 2. d4 {[%clk 0:02:59]}  cxd4 {[%clk 0:02:59]} 3. c3 {[%clk 0:03:00]}  d3 {[%clk 0:03:00]} 4. Bxd3 {[%clk 0:03:00]}  d6 {[%clk 0:03:01]} 5. f4 {[%clk 0:03:00]}  Nc6 {[%clk 0:03:01]} 6. Nf3 {[%clk 0:03:01]}  g6 {[%clk 0:03:01]} 7. O-O {[%clk 0:03:01]}  Bg7 {[%clk 0:03:02]} 8. Kh1 {[%clk 0:03:02]}  Nf6 {[%clk 0:03:02]} 9. Be3 {[%clk 0:03:03]}  O-O {[%clk 0:03:03]} 10. Nbd2 {[%clk 0:03:04]}  Bg4 {[%clk 0:03:00]} 11. h3 {[%clk 0:03:04]}  Bxf3 {[%clk 0:02:59]} 12. Nxf3 {[%clk 0:03:05]}  Qc7 {[%clk 0:03:00]} 13. Qe1 {[%clk 0:03:03]}  Rad8 {[%clk 0:03:00]} 14. Rd1 {[%clk 0:03:03]}  a6 {[%clk 0:03:00]} 15. a3 {[%clk 0:03:02]}  b5 {[%clk 0:03:00]} 16. Bb1 {[%clk 0:03:01]}  Na5 {[%clk 0:02:59]} 17. Qh4 {[%clk 0:02:50]}  Nc4 {[%clk 0:02:48]} 18. Bc1 {[%clk 0:02:50]}  Nh5 {[%clk 0:02:39]} 19. g4 {[%clk 0:02:45]}  Nf6 {[%clk 0:02:39]} 20. f5 {[%clk 0:02:41]}  h5 {[%clk 0:02:23]} 21. gxh5 {[%clk 0:02:35]}  Nxh5 {[%clk 0:02:24]} 22. Rg1 {[%clk 0:02:35]}  Qc5 {[%clk 0:02:13]} 23. Rd5 {[%clk 0:02:30]}  Qb6 {[%clk 0:02:02]} 24. Ng5 {[%clk 0:02:10]}  Ne3 {[%clk 0:01:52]} 25. Rd3 {[%clk 0:01:58]}  Nc4 {[%clk 0:01:46]} 26. Rdd1 {[%clk 0:01:54]}  Ne5 {[%clk 0:01:35]} 27. Ba2 {[%clk 0:01:52]}  Nf3 {[%clk 0:01:32]} 28. Nxf3 {[%clk 0:01:51]} 1-0


[Site "https://www.chess.com"]

[Event "Titled Tuesday Blitz December 7 2021"]
[White "Korchmar, Vasiliy"]
[Black "Saez Coma, Alejandro"]
[WhiteFideId "24131750"]
[BlackFideId "32004818"]
[WhiteElo "2709"]
[BlackElo "2396"]
[Result "1-0"]
[Round "01"]
[TimeControl "180+1"]
[Date "2021.12.07"]
[WhiteClock "0:00:03"]
[BlackClock "0:00:21"]

1. e4 {[%clk 0:03:00]}  c5 {[%clk 0:02:57]} 2. Nf3 {[%clk 0:03:00]}  g6 {[%clk 0:02:57]} 3. d4 {[%clk 0:02:58]}  cxd4 {[%clk 0:02:57]} 4. Nxd4 {[%clk 0:02:59]}  Bg7 {[%clk 0:02:57]} 5. c4 {[%clk 0:02:59]}  Nc6 {[%clk 0:02:57]} 6. Be3 {[%clk 0:02:59]}  d6 {[%clk 0:02:57]} 7. Nc3 {[%clk 0:02:59]}  Nxd4 {[%clk 0:02:57]} 8. Bxd4 {[%clk 0:02:58]}  Nf6 {[%clk 0:02:58]} 9. Be2 {[%clk 0:02:58]}  O-O {[%clk 0:02:58]} 10. O-O {[%clk 0:02:58]}  a5 {[%clk 0:02:59]} 11. f3 {[%clk 0:02:40]}  Bd7 {[%clk 0:02:59]} 12. b3 {[%clk 0:02:37]}  Bc6 {[%clk 0:02:59]} 13. Qd2 {[%clk 0:02:32]}  Nd7 {[%clk 0:02:55]} 14. Be3 {[%clk 0:02:31]}  Nc5 {[%clk 0:02:55]} 15. Rab1 {[%clk 0:02:22]}  Qb6 {[%clk 0:02:53]} 16. Rfc1 {[%clk 0:01:40]}  Rfc8 {[%clk 0:02:48]} 17. Nd5 {[%clk 0:01:20]}  Bxd5 {[%clk 0:02:46]} 18. exd5 {[%clk 0:01:21]}  Qb4 {[%clk 0:02:40]} 19. Bf1 {[%clk 0:01:10]}  Qxd2 {[%clk 0:02:38]} 20. Bxd2 {[%clk 0:01:10]}  Bd4+ {[%clk 0:02:34]} 21. Kh1 {[%clk 0:01:09]}  b6 {[%clk 0:02:33]} 22. Re1 {[%clk 0:01:04]}  Bf6 {[%clk 0:02:31]} 23. g4 {[%clk 0:00:55]}  Rc7 {[%clk 0:02:27]} 24. a3 {[%clk 0:00:52]}  a4 {[%clk 0:02:00]} 25. b4 {[%clk 0:00:52]}  Nb3 {[%clk 0:01:59]} 26. Bh6 {[%clk 0:00:35]}  Bg7 {[%clk 0:01:48]} 27. Bg5 {[%clk 0:00:29]}  Bf6 {[%clk 0:01:48]} 28. Bxf6 {[%clk 0:00:23]}  exf6 {[%clk 0:01:48]} 29. Red1 {[%clk 0:00:19]}  Re8 {[%clk 0:01:46]} 30. Kg2 {[%clk 0:00:19]}  Re5 {[%clk 0:01:36]} 31. Kf2 {[%clk 0:00:17]}  Kg7 {[%clk 0:01:32]} 32. Bd3 {[%clk 0:00:11]}  Rce7 {[%clk 0:01:20]} 33. Rb2 {[%clk 0:00:11]}  b5 {[%clk 0:01:08]} 34. cxb5 {[%clk 0:00:04]}  Rxd5 {[%clk 0:01:07]} 35. Be2 {[%clk 0:00:01]}  Rxd1 {[%clk 0:00:34]} 36. Bxd1 {[%clk 0:00:02]}  Rb7 {[%clk 0:00:31]} 37. Bxb3 {[%clk 0:00:01]}  axb3 {[%clk 0:00:27]} 38. Rxb3 {[%clk 0:00:02]}  Rxb5 {[%clk 0:00:27]} 39. a4 {[%clk 0:00:03]}  Rb8 {[%clk 0:00:26]} 40. b5 {[%clk 0:00:04]}  Kf8 {[%clk 0:00:26]} 41. b6 {[%clk 0:00:04]}  Ke7 {[%clk 0:00:27]} 42. a5 {[%clk 0:00:04]}  Kd7 {[%clk 0:00:28]} 43. b7 {[%clk 0:00:03]}  Rxb7 {[%clk 0:00:20]} 44. Rxb7+ {[%clk 0:00:03]}  Kc6 {[%clk 0:00:21]} 45. Rb2 {[%clk 0:00:03]} 1-0


[Site "https://www.chess.com"]

[Event "Titled Tuesday Blitz December 7 2021"]
[White "Krutko, Anatoly"]
[Black "Svane, Frederik"]
[WhiteFideId "4185862"]
[BlackFideId "12923044"]
[WhiteElo "2459"]
[BlackElo "2846"]
[Result "0-1"]
[Round "01"]
[TimeControl "180+1"]
[Date "2021.12.07"]
[WhiteClock "0:02:00"]
[BlackClock "0:02:08"]

1. e4 {[%clk 0:02:56]}  c5 {[%clk 0:02:54]} 2. Nf3 {[%clk 0:02:45]}  e6 {[%clk 0:02:54]} 3. d3 {[%clk 0:02:44]}  Nc6 {[%clk 0:02:53]} 4. g3 {[%clk 0:02:43]}  d5 {[%clk 0:02:52]} 5. Nbd2 {[%clk 0:02:43]}  Nf6 {[%clk 0:02:52]} 6. Bg2 {[%clk 0:02:43]}  Be7 {[%clk 0:02:52]} 7. O-O {[%clk 0:02:42]}  O-O {[%clk 0:02:53]} 8. Re1 {[%clk 0:02:42]}  b5 {[%clk 0:02:49]} 9. e5 {[%clk 0:02:41]}  Nd7 {[%clk 0:02:48]} 10. Nf1 {[%clk 0:02:41]}  b4 {[%clk 0:02:45]} 11. h4 {[%clk 0:02:35]}  a5 {[%clk 0:02:43]} 12. Bf4 {[%clk 0:02:33]}  Ba6 {[%clk 0:02:41]} 13. N1h2 {[%clk 0:02:31]}  Qc7 {[%clk 0:02:41]} 14. h5 {[%clk 0:02:26]}  h6 {[%clk 0:02:38]} 15. Ng4 {[%clk 0:02:23]}  Rfc8 {[%clk 0:02:38]} 16. Qc1 {[%clk 0:02:16]}  Nd4 {[%clk 0:02:28]} 17. Bxh6 {[%clk 0:02:11]}  Nxf3+ {[%clk 0:02:26]} 18. Bxf3 {[%clk 0:02:09]}  gxh6 {[%clk 0:02:25]} 19. Qxh6 {[%clk 0:02:10]}  Qd8 {[%clk 0:02:14]} 20. Be4 {[%clk 0:02:06]}  dxe4 {[%clk 0:02:09]} 21. Rxe4 {[%clk 0:02:07]}  Bg5 {[%clk 0:02:08]} 22. Nf6+ {[%clk 0:02:00]}  Qxf6 {[%clk 0:02:08]} 0-1


[Site "https://www.chess.com"]

[Event "Titled Tuesday Blitz December 7 2021"]
[White "Licznerski, Lukasz"]
[Black "Tarasova, Viktoriya"]
[WhiteFideId "1179250"]
[BlackFideId "4175840"]
[WhiteElo "2762"]
[BlackElo "2434"]
[Result "0-1"]
[Round "01"]
[TimeControl "180+1"]
[Date "2021.12.07"]
[WhiteClock "0:00:02"]
[BlackClock "0:00:09"]

1. e4 {[%clk 0:02:46]}  e5 {[%clk 0:02:57]} 2. Nf3 {[%clk 0:02:45]}  Nc6 {[%clk 0:02:57]} 3. Bb5 {[%clk 0:02:45]}  Nf6 {[%clk 0:02:56]} 4. d3 {[%clk 0:02:42]}  Bc5 {[%clk 0:02:55]} 5. c3 {[%clk 0:02:42]}  O-O {[%clk 0:02:53]} 6. O-O {[%clk 0:02:42]}  Re8 {[%clk 0:02:50]} 7. Nbd2 {[%clk 0:02:34]}  a6 {[%clk 0:02:45]} 8. Ba4 {[%clk 0:02:33]}  b5 {[%clk 0:02:44]} 9. Bb3 {[%clk 0:02:32]}  d6 {[%clk 0:02:40]} 10. h3 {[%clk 0:02:31]}  h6 {[%clk 0:02:40]} 11. Re1 {[%clk 0:02:30]}  Be6 {[%clk 0:02:40]} 12. Bxe6 {[%clk 0:02:21]}  Rxe6 {[%clk 0:02:31]} 13. Nf1 {[%clk 0:02:22]}  Bb6 {[%clk 0:02:25]} 14. Ng3 {[%clk 0:02:22]}  d5 {[%clk 0:02:23]} 15. Qe2 {[%clk 0:02:15]}  d4 {[%clk 0:02:13]} 16. Nf5 {[%clk 0:02:10]}  Qd7 {[%clk 0:01:57]} 17. cxd4 {[%clk 0:02:05]}  Nxd4 {[%clk 0:01:56]} 18. N3xd4 {[%clk 0:02:05]}  Bxd4 {[%clk 0:01:56]} 19. Be3 {[%clk 0:02:00]}  c5 {[%clk 0:01:32]} 20. Rac1 {[%clk 0:01:47]}  Rc8 {[%clk 0:01:23]} 21. b3 {[%clk 0:01:44]}  Kh7 {[%clk 0:01:22]} 22. Qf3 {[%clk 0:01:39]}  Rec6 {[%clk 0:01:11]} 23. Rc2 {[%clk 0:01:27]}  Bxe3 {[%clk 0:00:55]} 24. Rxe3 {[%clk 0:01:13]}  Ng8 {[%clk 0:00:42]} 25. Qg3 {[%clk 0:01:11]}  g6 {[%clk 0:00:41]} 26. Nh4 {[%clk 0:01:10]}  Qe7 {[%clk 0:00:37]} 27. Re1 {[%clk 0:01:06]}  Nf6 {[%clk 0:00:36]} 28. Nf3 {[%clk 0:01:04]}  Re8 {[%clk 0:00:32]} 29. Rec1 {[%clk 0:01:04]}  Nh5 {[%clk 0:00:32]} 30. Qh4 {[%clk 0:00:57]}  Qxh4 {[%clk 0:00:28]} 31. Nxh4 {[%clk 0:00:57]}  Rec8 {[%clk 0:00:28]} 32. Nf3 {[%clk 0:00:50]}  f6 {[%clk 0:00:28]} 33. g3 {[%clk 0:00:49]}  Ng7 {[%clk 0:00:27]} 34. d4 {[%clk 0:00:34]}  exd4 {[%clk 0:00:24]} 35. Nxd4 {[%clk 0:00:34]}  R6c7 {[%clk 0:00:25]} 36. a4 {[%clk 0:00:31]}  bxa4 {[%clk 0:00:24]} 37. bxa4 {[%clk 0:00:32]}  Kg8 {[%clk 0:00:20]} 38. Rc4 {[%clk 0:00:31]}  Kf7 {[%clk 0:00:20]} 39. Kg2 {[%clk 0:00:29]}  Ne6 {[%clk 0:00:19]} 40. Nb3 {[%clk 0:00:27]}  Ke7 {[%clk 0:00:18]} 41. f4 {[%clk 0:00:27]}  Rd8 {[%clk 0:00:17]} 42. R4c2 {[%clk 0:00:23]}  Rd3 {[%clk 0:00:16]} 43. Nxc5 {[%clk 0:00:22]}  Nxc5 {[%clk 0:00:16]} 44. Rxc5 {[%clk 0:00:23]}  Rd2+ {[%clk 0:00:16]} 45. Kf3 {[%clk 0:00:22]}  Rcd7 {[%clk 0:00:15]} 46. R1c3 {[%clk 0:00:18]}  R2d3+ {[%clk 0:00:15]} 47. Rxd3 {[%clk 0:00:18]}  Rxd3+ {[%clk 0:00:16]} 48. Kf2 {[%clk 0:00:19]}  Rd4 {[%clk 0:00:16]} 49. Ra5 {[%clk 0:00:18]}  Rxe4 {[%clk 0:00:16]} 50. Rxa6 {[%clk 0:00:19]}  Rb4 {[%clk 0:00:16]} 51. a5 {[%clk 0:00:12]}  Rb2+ {[%clk 0:00:16]} 52. Kf3 {[%clk 0:00:11]}  Rb3+ {[%clk 0:00:16]} 53. Kf2 {[%clk 0:00:11]}  Rb2+ {[%clk 0:00:17]} 54. Ke3 {[%clk 0:00:12]}  Rb3+ {[%clk 0:00:17]} 55. Kd4 {[%clk 0:00:12]}  Rxg3 {[%clk 0:00:17]} 56. Rb6 {[%clk 0:00:08]}  Rxh3 {[%clk 0:00:17]} 57. a6 {[%clk 0:00:09]}  Ra3 {[%clk 0:00:17]} 58. Kc5 {[%clk 0:00:09]}  h5 {[%clk 0:00:17]} 59. Kc6 {[%clk 0:00:07]}  h4 {[%clk 0:00:17]} 60. Kb7 {[%clk 0:00:07]}  h3 {[%clk 0:00:16]} 61. Rb2 {[%clk 0:00:06]}  g5 {[%clk 0:00:16]} 62. fxg5 {[%clk 0:00:06]}  fxg5 {[%clk 0:00:14]} 63. a7 {[%clk 0:00:06]}  g4 {[%clk 0:00:14]} 64. Rb4 {[%clk 0:00:04]}  g3 {[%clk 0:00:14]} 65. Re4+ {[%clk 0:00:05]}  Kf6 {[%clk 0:00:13]} 66. Re3 {[%clk 0:00:05]}  Rxa7+ {[%clk 0:00:09]} 67. Kxa7 {[%clk 0:00:06]}  g2 {[%clk 0:00:09]} 68. Rf3+ {[%clk 0:00:06]}  Ke5 {[%clk 0:00:09]} 69. Rxh3 {[%clk 0:00:04]}  g1=Q+ {[%clk 0:00:09]} 70. Kb8 {[%clk 0:00:05]}  Qg8+ {[%clk 0:00:09]} 71. Ka7 {[%clk 0:00:05]}  Qg7+ {[%clk 0:00:09]} 72. Kb8 {[%clk 0:00:05]}  Qf8+ {[%clk 0:00:08]} 73. Ka7 {[%clk 0:00:05]}  Qf7+ {[%clk 0:00:09]} 74. Kb8 {[%clk 0:00:03]}  Qe8+ {[%clk 0:00:09]} 75. Kc7 {[%clk 0:00:04]}  Qe7+ {[%clk 0:00:09]} 76. Kb8 {[%clk 0:00:03]}  Qd6+ {[%clk 0:00:09]} 77. Ka7 {[%clk 0:00:02]}  Qd7+ {[%clk 0:00:09]} 78. Ka8 {[%clk 0:00:02]}  Qxh3 {[%clk 0:00:09]} 0-1


[Site "https://www.chess.com"]

[Event "Titled Tuesday Blitz December 7 2021"]
[White "Maly, Alexey"]
[Black "Nguyen Hong Nhung"]
[WhiteFideId "14103184"]
[BlackFideId "12412201"]
[WhiteElo "2833"]
[BlackElo "2459"]
[Result "1-0"]
[Round "01"]
[TimeControl "180+1"]
[Date "2021.12.07"]
[WhiteClock "0:01:56"]
[BlackClock "0:01:26"]

1. d4 {[%clk 0:03:00]}  f5 {[%clk 0:02:59]} 2. c4 {[%clk 0:02:59]}  Nf6 {[%clk 0:02:58]} 3. Nf3 {[%clk 0:02:59]}  g6 {[%clk 0:02:59]} 4. g3 {[%clk 0:02:59]}  Bg7 {[%clk 0:02:59]} 5. Bg2 {[%clk 0:02:59]}  O-O {[%clk 0:03:00]} 6. O-O {[%clk 0:02:59]}  d6 {[%clk 0:03:01]} 7. b3 {[%clk 0:03:00]}  Qe8 {[%clk 0:03:01]} 8. Bb2 {[%clk 0:03:00]}  Ne4 {[%clk 0:02:49]} 9. Nbd2 {[%clk 0:02:59]}  Nxd2 {[%clk 0:02:46]} 10. Qxd2 {[%clk 0:02:59]}  Nc6 {[%clk 0:02:34]} 11. d5 {[%clk 0:02:58]}  Ne5 {[%clk 0:02:34]} 12. Nd4 {[%clk 0:02:49]}  Bd7 {[%clk 0:02:17]} 13. h3 {[%clk 0:02:44]}  c6 {[%clk 0:02:16]} 14. f4 {[%clk 0:02:44]}  Nf7 {[%clk 0:02:16]} 15. Kh2 {[%clk 0:02:39]}  Rc8 {[%clk 0:02:08]} 16. Rae1 {[%clk 0:02:34]}  e5 {[%clk 0:02:01]} 17. dxe6 {[%clk 0:02:32]}  Bxe6 {[%clk 0:02:01]} 18. Nxe6 {[%clk 0:02:32]}  Qxe6 {[%clk 0:02:02]} 19. e4 {[%clk 0:02:28]}  Rfe8 {[%clk 0:01:54]} 20. Bxg7 {[%clk 0:02:25]}  Kxg7 {[%clk 0:01:54]} 21. Qd4+ {[%clk 0:02:25]}  Kg8 {[%clk 0:01:53]} 22. Qxa7 {[%clk 0:02:25]}  fxe4 {[%clk 0:01:50]} 23. Rxe4 {[%clk 0:02:22]}  Qd7 {[%clk 0:01:48]} 24. Rfe1 {[%clk 0:02:22]}  Rxe4 {[%clk 0:01:45]} 25. Rxe4 {[%clk 0:02:22]}  Nh6 {[%clk 0:01:41]} 26. Qe3 {[%clk 0:02:15]}  Nf5 {[%clk 0:01:39]} 27. Qe1 {[%clk 0:02:15]}  Ra8 {[%clk 0:01:38]} 28. g4 {[%clk 0:02:14]}  Nh4 {[%clk 0:01:33]} 29. Qxh4 {[%clk 0:02:13]}  Rxa2 {[%clk 0:01:29]} 30. Re7 {[%clk 0:02:12]}  Qd8 {[%clk 0:01:27]} 31. Qxh7+ {[%clk 0:01:56]}  Kf8 {[%clk 0:01:26]} 32. Qg7# {[%clk 0:01:56]} 1-0


[Site "https://www.chess.com"]